bitfinex/quotes_SOLUSD_20250919
["timestamp","ask_amount","ask_price","bid_price","bid_amount"]
[1758297781167,0.89,237.95,237.94,46.19559401]
[1758297782765,0.89,237.95,237.94,46.17559401]
[1758297782965,0.2,237.95,237.94,46.17559401]
[1758297783184,0.88,237.95,237.94,46.17559401]
[1758297784685,0.88,237.95,237.94,13.59559401]
[1758297784884,0.88,237.95,237.94,46.17559401]
[1758297785972,0.2,237.95,237.94,46.17559401]
[1758297786493,0.88,237.95,237.94,46.17559401]
[1758297786693,0.88,237.95,237.94,13.59559401]
[1758297786996,0.88,237.95,237.94,46.17559401]
[1758297788506,0.88,237.95,237.94,13.59559401]
[1758297788695,0.88,237.95,237.94,46.15559401]
[1758297788895,0.2,237.95,237.94,46.15559401]
[1758297789106,0.88,237.95,237.94,46.15559401]
[1758297791810,0.88,237.95,237.94,13.59559401]
[1758297792506,3.18871004,237.95,237.9,34.04]
[1758297792803,0.68,237.94,237.91,32.54]
[1758297793116,0.68,237.93,237.9,34.04]
[1758297793279,0.68,237.92,237.9,34.04]
[1758297793478,0.68,237.91,237.9,34.04]
[1758297793712,0.68,237.91,237.81,81.21]
[1758297793917,0.68,237.9,237.82,32.54]
[1758297794219,0.68,237.89,237.82,34.84871004]
[1758297794408,0.68,237.88,237.82,34.84871004]
[1758297794582,0.68,237.88,237.85,13.59559401]
[1758297794782,0.68,237.88,237.87,13.59559401]
[1758297795011,0.68,237.88,237.87,46.13559401]
[1758297797494,0.68,237.88,237.85,13.69559401]
[1758297797699,2.30871004,237.91,237.87,13.59559401]
[1758297798018,2.30871004,237.9,237.88,32.52]
[1758297798197,0.68,237.89,237.88,46.11559401]
[1758297798600,0.68,237.89,237.88,13.59559401]
[1758297798803,0.68,237.89,237.88,46.11559401]
[1758297799296,0.68,237.89,237.88,13.59559401]
[1758297799518,0.68,237.89,237.88,46.11559401]
[1758297800495,0.68,237.91,237.88,46.11559401]
[1758297800913,0.68,237.9,237.88,46.11559401]
[1758297801211,0.68,237.89,237.88,13.59559401]
[1758297801515,0.68,237.91,237.88,46.11559401]
[1758297801813,0.68,237.9,237.88,13.59559401]
[1758297802116,2.30871004,237.92,237.9,13.59559401]
[1758297802288,2.30871004,237.92,237.91,46.09559401]
[1758297802487,2.98871004,237.92,237.91,46.09559401]
[1758297804613,0.68,237.92,237.91,46.09559401]
[1758297804810,2.98871004,237.92,237.91,46.09559401]
[1758297805498,0.68,237.92,237.91,46.09559401]
[1758297807308,0.68,237.92,237.91,13.59559401]
[1758297807609,2.98871004,237.92,237.91,13.59559401]
[1758297807815,0.2,237.95,237.92,13.59559401]
[1758297808116,0.2,237.95,237.94,15.90430405]
[1758297808331,0.2,237.95,237.94,46.11559401]
[1758297808520,0.2,237.95,237.94,48.42430405]
[1758297810400,0.2,237.95,237.94,48.83430405]
[1758297810605,0.2,237.95,237.94,46.52559401]
[1758297810824,0.2,237.95,237.94,50.80138523]
[1758297811922,0.2,237.95,237.94,55.00412541]
[1758297812331,0.2,237.95,237.94,55.42439942]
[1758297814003,0.2,237.95,237.94,53.11568938]
[1758297814312,0.2,237.95,237.94,20.31136624]
[1758297814509,0.2,237.95,237.94,55.22007628]
[1758297814707,0.2,237.95,237.94,18.6286082]
[1758297815019,0.2,237.95,237.94,46.61586802]
[1758297817921,0.2,237.95,237.94,46.19559401]
[1758297818122,0.9,237.95,237.94,46.19559401]
[1758297818722,0.9,237.95,237.94,13.59559401]
[1758297818925,0.9,237.95,237.94,46.21559401]
[1758297819224,3.20871004,237.95,237.94,46.21559401]
[1758297820036,3.20871004,237.95,237.94,13.59559401]
[1758297820414,3.20871004,237.95,237.94,46.19559401]
[1758297820729,3.20871004,237.95,237.94,13.59559401]
[1758297821037,3.20871004,237.95,237.94,46.19559401]
[1758297821732,3.20871004,237.95,237.94,13.59559401]
[1758297821912,3.20871004,237.95,237.94,46.19559401]
[1758297822412,3.20871004,237.95,237.94,13.59559401]
[1758297822612,3.20871004,237.95,237.94,46.19559401]
[1758297825724,0.9,237.95,237.94,46.19559401]
[1758297825916,3.20871004,237.95,237.94,46.19559401]
[1758297826432,0.9,237.95,237.94,46.19559401]
[1758297826627,0.2,237.95,237.94,46.19559401]
[1758297827210,0.2,237.95,237.94,48.50430405]
[1758297827934,0.2,237.95,237.94,15.90430405]
[1758297828118,0.2,237.95,237.94,48.50430405]
[1758297829033,0.2,237.95,237.94,46.60559401]
[1758297829336,0.2,237.95,237.94,49.33457806]
[1758297829640,0.2,237.95,237.94,48.92457806]
[1758297831236,0.2,237.95,237.94,49.33457806]
[1758297831421,0.2,237.95,237.94,48.91430405]
[1758297831830,0.2,237.95,237.94,49.33457806]
[1758297832435,0.2,237.95,237.94,48.92457806]
[1758297833315,0.2,237.95,237.94,46.59586802]
[1758297833942,0.2,237.95,237.94,49.31457806]
[1758297834134,0.2,237.95,237.94,48.89430405]
[1758297834836,0.2,237.95,237.94,49.31457806]
[1758297835853,0.2,237.95,237.94,48.90457806]
[1758297836223,0.2,237.95,237.94,49.31457806]
[1758297836527,0.2,237.95,237.94,53.51731824]
[1758297837229,0.2,237.95,237.94,20.93731824]
[1758297837430,0.2,237.95,237.94,48.90457806]
[1758297837645,0.2,237.95,237.94,53.10731824]
[1758297837818,0.2,237.95,237.94,53.51731824]
[1758297838019,0.2,237.95,237.94,18.6286082]
[1758297838332,0.2,237.95,237.94,53.49731824]
[1758297839049,0.2,237.95,237.94,49.29457806]
[1758297839228,0.2,237.95,237.94,53.49731824]
[1758297841332,0.2,237.95,237.94,134.29731824]
[1758297841543,0.2,237.95,237.94,133.87704423]
[1758297842558,0.3,237.99,237.98,44.79559401]
[1758297842762,0.3,237.99,237.98,80.34883056]
[1758297842927,0.3,237.99,237.98,80.75883056]
[1758297843432,0.3,237.99,237.98,84.96086434]
[1758297843645,0.3,237.99,237.98,82.23195093]
[1758297843947,0.3,237.99,237.98,86.22306513]
[1758297844735,0.3,237.99,237.98,51.37435509]
[1758297844932,0.3,237.99,237.98,86.2332685]
[1758297845254,0.3,237.99,237.98,85.52874199]
[1758297846048,0.3,237.99,237.98,84.69642848]
[1758297847240,0.3,237.99,237.98,81.53762779]
[1758297847441,0.3,237.99,237.98,83.43422769]
[1758297847642,0.3,237.99,237.98,83.01402432]
[1758297848658,0.2,238.02,237.99,0.28432314]
[1758297848872,0.2,238.02,238.01,15.07199054]
[1758297849240,0.2,238.02,238.01,15.76631368]
[1758297849630,0.2,238.02,238.01,17.44850558]
[1758297850164,0.2,238.02,238.01,48.49210905]
[1758297850356,0.2,238.02,238.01,52.69361318]
[1758297851932,0.2,238.02,238.01,53.76000971]
[1758297852445,0.2,238.02,238.01,54.17000971]
[1758297852844,0.2,238.02,238.01,52.69361318]
[1758297853159,0.2,238.02,238.01,54.17000971]
[1758297853734,0.2,238.02,238.01,52.28361318]
[1758297854041,0.2,238.02,238.01,53.74000971]
[1758297854447,0.2,238.02,238.01,54.15000971]
[1758297854868,0.2,238.02,238.01,53.74000971]
[1758297857961,0.2,238.02,238.01,87.76000971]
[1758297858647,0.2,238.02,238.01,86.26361318]
[1758297858850,0.89,238.02,238.01,81.77778591]
[1758297859050,0.89,238.02,238.01,87.45568657]
[1758297859250,0.89,238.02,238.01,166.57349467]
[1758297859588,0.89,238.02,238.01,162.37199054]
[1758297859764,0.89,238.02,238.01,166.57349467]
[1758297860062,0.89,238.02,238.01,165.09709814]
[1758297860273,0.89,238.02,238.01,128.41559401]
[1758297860444,0.89,238.02,238.01,160.89559401]
[1758297861462,0.89,238.02,238.01,162.37199054]
[1758297861662,0.2,238.02,238.01,166.57349467]
[1758297862861,0.2,238.02,238.01,165.09709814]
[1758297863173,0.2,238.02,238.01,132.61709814]
[1758297863465,0.2,238.02,238.01,166.57349467]
[1758297868061,0.2,238.02,238.01,166.98349467]
[1758297868565,0.2,238.02,238.01,166.57349467]
[1758297868959,0.2,238.02,238.01,85.77349467]
[1758297870358,0.91,238.02,238.01,47.61559401]
[1758297870552,0.91,238.02,238.01,80.47574442]
[1758297871270,0.91,238.02,238.01,48.03574442]
[1758297871770,0.91,238.02,238.01,80.47574442]
[1758297871973,0.91,238.02,238.01,48.03574442]
[1758297872158,0.91,238.02,238.01,80.47574442]
[1758297872777,0.91,238.02,238.01,81.95214095]
[1758297872950,0.91,238.02,238.01,86.15364508]
[1758297873150,0.91,238.02,238.01,85.73349467]
[1758297873763,0.91,238.02,238.01,81.53199054]
[1758297873972,0.91,238.02,238.01,81.95214095]
[1758297874274,0.91,238.02,238.01,80.47574442]
[1758297874454,0.91,238.02,238.01,81.95214095]
[1758297874770,0.91,238.02,238.01,80.47574442]
[1758297875083,2.38639653,238.02,238.01,80.05559401]
[1758297875293,2.38639653,238.02,238.01,13.59559401]
[1758297875452,2.38639653,238.02,238.01,46.03559401]
[1758297875972,2.38639653,238.02,238.01,13.19138775]
[1758297876155,2.38639653,238.02,238.01,32.42967442]
[1758297876354,2.38639653,238.02,238.01,32.42209302]
[1758297876952,2.38639653,238.02,238.0,0.1]
[1758297877167,2.38639653,238.02,238.01,32.46]
[1758297877776,2.38639653,238.02,238.0,0.1]
[1758297877777,8.29198265,238.02,238.0,0.1]
[1758297877950,31.2,237.99,237.94,34.02]
[1758297878151,1.47639653,237.95,237.94,47.61559401]
[1758297878367,2.18639653,237.95,237.94,80.07559401]
[1758297878570,0.71,237.95,237.94,80.07559401]
[1758297878749,2.18639653,237.95,237.94,80.07559401]
[1758297879967,1.47639653,237.95,237.94,89.06744998]
[1758297880174,14.53361006,238.09,237.94,89.06744998]
[1758297880377,1.47639653,237.95,237.94,43.01185597]
[1758297880589,1.47639653,237.95,237.94,66.5]
[1758297880880,1.47639653,237.95,237.94,29.80446136]
[1758297881763,1.47639653,237.95,237.87,13.59559401]
[1758297881979,1.47639653,237.89,237.88,41.47185597]
[1758297882159,2.18639653,237.89,237.88,41.49185597]
[1758297882364,2.08639653,237.89,237.88,41.49185597]
[1758297885176,2.08639653,237.89,237.83,8.99185597]
[1758297885377,1.47639653,237.85,237.84,15.18]
[1758297885581,2.18639653,237.85,237.84,41.49185597]
[1758297887168,0.71,237.85,237.84,41.49185597]
[1758297887373,1.47639653,237.86,237.84,41.49185597]
[1758297887575,0.71,237.86,237.84,41.49185597]
[1758297887887,2.18639653,237.86,237.84,41.49185597]
[1758297888197,0.71,237.86,237.84,41.49185597]
[1758297888487,1.47639653,237.86,237.84,41.49185597]
[1758297889606,0.71,237.89,237.84,41.49185597]
[1758297889790,1.43086348,237.87,237.84,41.49185597]
[1758297891304,7.06449008,238.23,237.84,41.49185597]
[1758297891305,1.47639653,237.91,237.88,13.59559401]
[1758297891600,1.47639653,237.93,237.92,8.99185597]
[1758297891807,1.47639653,237.93,237.92,32.5]
[1758297891978,0.71,237.93,237.92,41.49185597]
[1758297892906,1.47639653,237.94,237.92,41.49185597]
[1758297893209,0.71,237.94,237.92,41.49185597]
[1758297895694,1.47639653,237.95,237.92,41.49185597]
[1758297895991,2.19639653,237.95,237.92,41.49185597]
[1758297896498,0.72,237.94,237.92,41.49185597]
[1758297896801,2.19639653,237.93,237.92,8.99185597]
[1758297896981,2.19639653,237.93,237.92,32.5]
[1758297900101,2.19639653,237.93,237.85,8.99185597]
[1758297900420,0.68,237.92,237.86,32.48]
[1758297900597,0.68,237.91,237.87,8.99185597]
[1758297900902,0.68,237.94,237.88,13.59559401]
[1758297901094,0.68,237.94,237.89,32.5]
[1758297901297,0.68,237.94,237.91,8.99185597]
[1758297901497,1.47639653,237.92,237.91,8.99185597]
[1758297901700,1.47639653,237.92,237.91,41.51185597]
[1758297902898,1.47639653,237.92,237.91,55.10744998]
[1758297903091,1.47639653,237.92,237.91,55.80744998]
[1758297903514,0.68,237.98,237.93,8.99185597]
[1758297903688,1.47639653,237.94,237.93,8.99185597]
[1758297904005,1.47639653,237.94,237.93,41.51185597]
[1758297905993,31.88,237.97,237.93,41.51185597]
[1758297906206,1.47639653,237.94,237.93,41.51185597]
[1758297906392,31.2,237.97,237.94,13.59559401]
[1758297906601,1.47639653,237.97,237.96,13.59559401]
[1758297906796,1.47639653,237.97,237.96,23.28744998]
[1758297907194,3.3340211,238.06,237.96,8.99185597]
[1758297907387,0.68,238.05,237.97,32.52]
[1758297907714,1.47639653,237.98,237.97,32.52]
[1758297907888,0.68,238.04,237.98,22.58744998]
[1758297908085,0.68,238.04,237.99,32.54]
[1758297908508,0.68,238.03,237.99,32.54]
[1758297909015,2.30919562,238.0,237.99,32.54]
[1758297909697,2.98919562,238.0,237.99,32.54]
[1758297910088,2.30919562,238.0,237.99,32.54]
[1758297910893,0.68,238.07,238.0,22.58744998]
[1758297911088,0.1,238.09,238.04,8.99185597]
[1758297911404,0.1,238.09,238.05,13.59559401]
[1758297911405,2.30919562,238.08,238.05,13.59559401]
[1758297911601,2.30919562,238.07,238.05,46.87559401]
[1758297911914,0.1,238.09,238.06,22.58744998]
[1758297912206,2.30919562,238.07,238.06,22.58744998]
[1758297913509,0.68,238.07,238.04,8.99185597]
[1758297913702,0.68,238.06,238.05,46.17559401]
[1758297914086,0.68,238.06,238.05,32.58]
[1758297914408,0.68,238.08,238.05,32.58]
[1758297914801,2.30919562,238.06,238.05,32.58]
[1758297915699,2.98919562,238.06,238.05,32.58]
[1758297918926,2.30919562,238.06,238.05,32.58]
[1758297919596,2.30919562,238.06,238.05,41.57185597]
[1758297923499,2.30919562,238.06,238.05,42.27185597]
[1758297923699,2.30919562,238.07,238.06,13.59559401]
[1758297924001,2.30919562,238.07,238.06,14.29559401]
[1758297924412,2.30919562,238.07,238.06,13.59559401]
[1758297924643,2.30919562,238.07,238.06,14.29559401]
[1758297925142,2.30919562,238.08,238.07,8.99185597]
[1758297925430,2.30919562,238.08,238.07,41.53185597]
[1758297930513,2.30919562,238.08,238.07,9.65185597]
[1758297930712,2.30919562,238.08,238.07,42.15185597]
[1758297931617,2.30919562,238.08,238.07,41.49185597]
[1758297932003,0.1,238.09,238.07,42.15185597]
[1758297932222,2.30919562,238.08,238.07,42.15185597]
[1758297932435,0.1,238.09,238.07,42.15185597]
[1758297932736,0.1,238.09,238.08,14.25559401]
[1758297934541,0.1,238.09,238.08,16.56478963]
[1758297934908,0.1,238.09,238.08,97.36478963]
[1758297935225,0.1,238.09,238.08,129.88478963]
[1758297936228,0.1,238.09,238.08,127.57559401]
[1758297936440,0.1,238.09,238.08,129.88478963]
[1758297937238,0.1,238.09,238.08,95.05559401]
[1758297937440,2.40919562,238.09,238.08,95.05559401]
[1758297937644,2.40919562,238.09,238.08,127.55559401]
[1758297937849,0.1,238.09,238.08,127.55559401]
[1758297939121,0.1,238.09,238.08,46.75559401]
[1758297939663,0.1,238.09,238.08,46.09559401]
[1758297940836,3.09919562,238.09,238.08,46.07559401]
[1758297941035,2.40919562,238.09,238.08,46.07559401]
[1758297941823,3.09919562,238.09,238.08,46.07559401]
[1758297942029,0.1,238.09,238.08,46.07559401]
[1758297942233,0.1,238.09,238.08,46.73559401]
[1758297947433,0.1,238.09,238.08,14.25559401]
[1758297947635,0.1,238.09,238.08,46.75559401]
[1758297951453,0.1,238.09,238.08,46.09559401]
[1758297951825,0.1,238.09,238.08,46.05559401]
[1758297954152,0.79,238.09,238.08,13.59559401]
[1758297954336,3.09919562,238.09,238.08,46.03559401]
[1758297954671,2.40919562,238.09,238.08,46.03559401]
[1758297954846,0.1,238.09,238.08,46.69559401]
[1758297955148,0.1,238.09,238.08,46.03559401]
[1758297955856,3.12919562,238.09,238.08,46.27559401]
[1758297956029,0.82,238.09,238.08,46.27559401]
[1758297956228,0.1,238.09,238.08,46.27559401]
[1758297957829,0.1,238.09,238.08,46.93559401]
[1758297959450,0.1,238.09,238.08,46.27559401]
[1758297959961,3.07919562,238.09,238.08,46.29559401]
[1758297960141,2.40919562,238.09,238.08,46.29559401]
[1758297960659,2.40919562,238.09,238.08,13.59559401]
[1758297960839,3.07919562,238.09,238.08,13.59559401]
[1758297961039,3.07919562,238.09,238.08,46.29559401]
[1758297961854,2.40919562,238.09,238.08,46.29559401]
[1758297962174,3.07919562,238.09,238.08,46.29559401]
[1758297963163,2.40919562,238.09,238.08,46.29559401]
[1758297963369,3.07919562,238.09,238.08,46.29559401]
[1758297963568,3.07919562,238.09,238.08,32.7]
[1758297964551,3.07919562,238.09,238.07,8.99185597]
[1758297964843,0.1,238.09,238.07,8.99185597]
[1758297965157,0.1,238.09,238.08,32.68]
[1758297965855,3.07919562,238.09,238.08,32.68]
[1758297966443,2.40919562,238.09,238.08,32.68]
[1758297967070,3.07919562,238.09,238.08,32.68]
[1758297967366,0.1,238.09,238.08,46.27559401]
[1758297967870,0.1,238.09,238.08,46.98559401]
[1758297968963,0.1,238.09,238.08,46.27559401]
[1758297971169,0.1,238.09,238.08,46.25559401]
[1758297971367,0.77,238.09,238.08,13.59559401]
[1758297971570,0.77,238.09,238.08,46.23559401]
[1758297971968,0.1,238.09,238.08,46.23559401]
[1758297981674,0.1,238.09,238.08,13.59559401]
[1758297981878,0.1,238.09,238.08,46.17559401]
[1758297983685,0.1,238.09,238.08,46.88559401]
[1758297984570,0.1,238.09,238.08,48.36155978]
[1758297984777,0.1,238.09,238.08,46.88559401]
[1758297985085,0.1,238.09,238.08,48.36155978]
[1758297988396,0.1,238.09,238.08,47.65155978]
[1758297989377,0.1,238.09,238.08,48.35155978]
[1758297991388,0.1,238.09,238.08,46.87559401]
[1758297991588,0.1,238.09,238.08,48.35155978]
[1758297992787,0.1,238.09,238.08,48.77158666]
[1758297993471,0.1,238.09,238.08,133.77185547]
[1758297993676,0.1,238.09,238.08,133.35182859]
[1758297994895,0.1,238.09,238.08,135.03366684]
[1758297995269,0.1,238.09,238.08,100.97770107]
[1758297995476,0.1,238.09,238.08,98.25339803]
[1758297995672,0.1,238.09,238.08,130.77339803]
[1758297995882,0.1,238.09,238.08,98.25339803]
[1758297996096,0.1,238.09,238.08,130.77339803]
[1758297996974,0.1,238.09,238.08,134.97366684]
[1758297998496,0.1,238.09,238.08,54.17366684]
[1758297998701,0.1,238.09,238.08,54.59369372]
[1758298000389,0.1,238.09,238.08,135.39369372]
[1758298000598,0.1,238.1,238.09,22.87177312]
[1758298000898,0.1,238.1,238.09,138.34773889]
[1758298001078,0.1,238.1,238.09,104.08744998]
[1758298001287,0.1,238.1,238.09,136.58744998]
[1758298001478,0.1,238.1,238.09,138.06341575]
[1758298001873,0.1,238.1,238.09,22.58744998]
[1758298002094,0.1,238.1,238.09,55.08744998]
[1758298002299,2.28596577,238.1,238.09,55.08744998]
[1758298002500,0.81,238.1,238.09,55.08744998]
[1758298004015,2.28596577,238.1,238.09,55.08744998]
[1758298004221,0.81,238.1,238.09,55.08744998]
[1758298005295,0.1,238.1,238.09,55.08744998]
[1758298007303,0.81,238.1,238.09,55.08744998]
[1758298008704,2.28596577,238.1,238.09,55.08744998]
[1758298010326,2.28596577,238.1,238.09,8.99185597]
[1758298010625,2.28596577,238.1,238.09,41.49185597]
[1758298011732,2.28596577,238.1,238.09,41.47185597]
[1758298011898,2.28596577,238.1,238.07,8.99185597]
[1758298012095,0.71,238.09,238.08,32.5]
[1758298013329,2.18596577,238.09,238.08,32.5]
[1758298014013,2.18596577,238.09,238.07,8.99185597]
[1758298014215,1.47596577,238.09,238.08,32.5]
[1758298014423,1.47596577,238.09,238.08,32.48]
[1758298014797,2.18596577,238.09,238.08,41.47185597]
[1758298015320,2.18596577,238.09,238.08,32.48]
[1758298015521,2.18596577,238.09,238.07,8.99185597]
[1758298015822,0.66,238.08,238.07,8.99185597]
[1758298016026,0.66,238.08,238.07,41.47185597]
[1758298016331,2.13596577,238.08,238.07,41.47185597]
[1758298019038,4.32193154,238.08,238.07,41.47185597]
[1758298019528,4.32193154,238.08,238.07,32.48]
[1758298019737,4.32193154,238.08,238.07,41.47185597]
[1758298020817,2.13596577,238.08,238.07,41.47185597]
[1758298021642,0.66,238.08,238.07,41.47185597]
[1758298021841,2.13596577,238.08,238.07,41.47185597]
[1758298022140,0.1,238.1,238.09,22.58744998]
[1758298022337,0.1,238.1,238.09,55.04744998]
[1758298022639,0.1,238.1,238.09,55.73744998]
[1758298024246,0.1,238.1,238.09,55.73744998]
[1758298025528,0.1,238.1,238.09,55.04744998]
[1758298026747,2.26596577,238.1,238.09,55.06744998]
[1758298027133,2.26596577,238.1,238.09,22.58744998]
[1758298027442,2.26596577,238.1,238.09,8.73082464]
[1758298027747,2.26596577,238.1,238.09,32.39474216]
[1758298028116,2.26596577,238.1,238.09,41.1255668]
[1758298028842,2.26596577,238.1,238.09,41.19082464]
[1758298029537,2.26596577,238.1,238.09,32.46]
[1758298031832,2.4073317,238.1,238.09,32.46]
[1758298032048,0.1,238.1,238.09,46.74559401]
[1758298032253,0.1,238.1,238.09,49.47293495]
[1758298032634,0.1,238.1,238.09,49.53293495]
[1758298033030,0.1,238.1,238.09,53.73302735]
[1758298033541,0.1,238.1,238.09,49.53293495]
[1758298034722,0.1,238.1,238.09,14.70560325]
[1758298034927,0.1,238.1,238.09,47.22560325]
[1758298035148,0.1,238.1,238.09,13.59559401]
[1758298035453,0.1,238.1,238.09,46.80559401]
[1758298035748,0.1,238.1,238.09,14.28559401]
[1758298035931,0.1,238.1,238.09,46.82559401]
[1758298036621,0.1,238.1,238.09,49.13292571]
[1758298036826,0.1,238.1,238.09,53.33301811]
[1758298038034,0.1,238.1,238.09,134.41734125]
[1758298039049,0.1,238.1,238.09,101.59301811]
[1758298039258,0.1,238.1,238.09,134.13301811]
[1758298041245,0.1,238.1,238.09,101.59301811]
[1758298041437,0.1,238.1,238.09,134.13301811]
[1758298041944,0.1,238.1,238.09,131.82568641]
[1758298042147,0.1,238.1,238.09,134.13301811]
[1758298042529,0.1,238.13,238.12,22.32641865]
[1758298042733,0.1,238.13,238.12,57.57370667]
[1758298042947,0.1,238.13,238.12,139.06370667]
[1758298043149,0.1,238.13,238.12,138.64375035]
[1758298044538,0.1,238.13,238.12,62.04331359]
[1758298044745,0.1,238.13,238.12,62.46326991]
[1758298045340,0.1,238.13,238.12,29.94326991]
[1758298045540,0.1,238.13,238.12,62.46326991]
[1758298047745,0.1,238.13,238.12,60.15593821]
[1758298048042,0.1,238.13,238.12,62.46326991]
[1758298049762,0.1,238.13,238.12,60.15593821]
[1758298049961,0.1,238.13,238.12,62.46326991]
[1758298051066,0.1,238.13,238.12,60.15593821]
[1758298051469,0.1,238.13,238.12,62.46326991]
[1758298051677,0.1,238.13,238.12,62.44326991]
[1758298051970,0.1,238.17,238.16,22.32641865]
[1758298052288,0.1,238.17,238.16,138.33363614]
[1758298052445,0.1,238.17,238.16,138.62375035]
[1758298053055,0.1,238.17,238.16,142.82260826]
[1758298061375,0.1,238.17,238.16,105.43375035]
[1758298061584,0.79,238.17,238.16,105.43375035]
[1758298061880,0.1,238.18,238.17,13.59559401]
[1758298062052,0.1,238.18,238.17,17.03279387]
[1758298064181,0.1,238.18,238.17,20.52147548]
[1758298065378,5.860001,238.21,238.17,102.31579862]
[1758298065563,5.860001,238.21,238.2,22.32641865]
[1758298065762,5.860001,238.21,238.2,57.47356563]
[1758298065970,5.860001,238.21,238.2,55.16623393]
[1758298066275,6.550001,238.21,238.2,55.16623393]
[1758298066576,5.860001,238.21,238.2,55.16623393]
[1758298066777,6.550001,238.21,238.2,55.16623393]
[1758298067154,6.550001,238.21,238.2,57.47356563]
[1758298067354,6.550001,238.21,238.2,54.74641865]
[1758298069878,5.860001,238.21,238.2,54.74641865]
[1758298070082,6.550001,238.21,238.2,54.74641865]
[1758298071663,6.550001,238.21,238.2,22.32641865]
[1758298071870,8.8573327,238.21,238.2,54.74641865]
[1758298072580,6.550001,238.21,238.2,54.74641865]
[1758298076961,5.860001,238.21,238.2,54.74641865]
[1758298077382,6.520001,238.21,238.2,54.74641865]
[1758298078087,8.8273327,238.21,238.2,54.74641865]
[1758298078602,8.8273327,238.21,238.2,46.01559401]
[1758298079476,40.0273327,238.21,238.2,46.01559401]
[1758298079677,40.0273327,238.21,238.2,54.74641865]
[1758298080387,37.720001,238.21,238.2,54.74641865]
[1758298081091,5.860001,238.21,238.2,54.74641865]
[1758298084995,6.530001,238.21,238.2,54.74641865]
[1758298085996,6.530001,238.21,238.2,22.32641865]
[1758298086197,6.530001,238.21,238.2,54.74641865]
[1758298087300,8.8373327,238.21,238.2,54.74641865]
[1758298087799,6.530001,238.21,238.2,54.74641865]
[1758298091476,5.860001,238.21,238.2,54.74641865]
[1758298093203,6.530001,238.21,238.2,54.74641865]
[1758298093986,8.00449317,238.21,238.2,54.74641865]
[1758298094199,31.2,238.19,238.15,8.73082464]
[1758298094517,31.87,238.18,238.17,8.73082464]
[1758298094814,31.87,238.18,238.17,41.19082464]
[1758298095803,33.34449217,238.18,238.17,41.19082464]
[1758298096290,33.34449217,238.18,238.17,32.46]
[1758298096483,33.34449217,238.18,238.17,41.19082464]
[1758298096804,33.34449217,238.18,238.17,32.46]
[1758298097005,33.34449217,238.18,238.17,41.19082464]
[1758298097807,33.34449217,238.18,238.17,32.46]
[1758298097986,33.34449217,238.18,238.17,41.19082464]
[1758298098188,33.34449217,238.18,238.17,32.46]
[1758298098388,33.34449217,238.18,238.17,41.19082464]
[1758298099500,33.34449217,238.18,238.17,32.46]
[1758298100101,31.2,238.18,238.17,54.78641865]
[1758298100304,5.860001,238.21,238.19,22.32641865]
[1758298100510,5.860001,238.21,238.2,32.44]
[1758298100902,5.860001,238.21,238.2,46.03559401]
[1758298101521,5.860001,238.21,238.2,46.73559401]
[1758298102016,5.860001,238.21,238.2,46.03559401]
[1758298102589,5.860001,238.21,238.2,46.73559401]
[1758298103230,5.860001,238.21,238.2,46.03559401]
[1758298106092,5.860001,238.21,238.2,46.74559401]
[1758298106414,5.860001,238.21,238.2,46.03559401]
[1758298110502,6.530001,238.21,238.2,46.03559401]
[1758298110896,5.860001,238.21,238.2,13.59559401]
[1758298111114,8.00449317,238.21,238.2,46.01559401]
[1758298112226,6.530001,238.21,238.2,46.01559401]
[1758298112431,8.00449317,238.21,238.2,46.01559401]
[1758298113428,5.860001,238.21,238.2,46.01559401]
[1758298116533,5.860001,238.21,238.2,46.72559401]
[1758298116750,5.860001,238.21,238.2,48.20008618]
[1758298117337,5.860001,238.21,238.2,52.39823899]
[1758298118606,5.860001,238.21,238.2,46.72559401]
[1758298118809,5.860001,238.21,238.2,48.20008618]